bitfinex/quotes_SOLUSD_20250313
["timestamp","ask_amount","ask_price","bid_price","bid_amount"]
[1741835278355,0.28432314,125.09,125.03,0.03]
[1741835278653,35.94243414,125.07,125.03,0.03]
[1741835278873,35.94243414,125.06,125.03,0.03]
[1741835279073,35.94243414,125.07,125.03,0.03]
[1741835279862,42.52429571,125.1,125.03,0.03]
[1741835279863,35.94243414,125.05,125.03,0.03]
[1741835280552,35.94243414,125.04,125.03,0.03]
[1741835280769,35.94243414,125.06,125.03,0.03]
[1741835281079,50.56213414,125.1,125.03,0.03]
[1741835281080,35.94243414,125.08,125.03,0.03]
[1741835281373,35.94243414,125.06,125.03,0.03]
[1741835282077,35.94243414,125.07,125.03,0.03]
[1741835282277,35.94243414,125.08,125.03,0.03]
[1741835282578,0.14216157,125.11,125.04,35.94243414]
[1741835282579,35.94243414,125.09,125.04,35.94243414]
[1741835282787,35.94243414,125.09,125.03,35.97243414]
[1741835282953,35.94243414,125.11,125.05,35.94243414]
[1741835283160,35.94243414,125.11,125.06,55.94243414]
[1741835283380,35.94243414,125.12,125.06,55.94243414]
[1741835284079,35.94243414,125.11,125.06,19.96594107]
[1741835284389,0.28432314,125.06,125.03,0.03]
[1741835284690,36.22675728,125.04,125.03,0.03]
[1741835285255,72.16919142,125.04,125.03,0.03]
[1741835285651,36.22675728,125.04,125.03,0.03]
[1741835286067,35.94243414,125.04,125.03,0.03]
[1741835286275,35.94243414,125.05,125.03,0.03]
[1741835286574,0.063,125.07,125.03,0.03]
[1741835287155,35.94243414,125.05,125.03,0.03]
[1741835287358,35.94243414,125.06,125.03,0.03]
[1741835287862,8.0585,125.07,125.03,0.03]
[1741835287863,35.94243414,125.05,125.03,0.03]
[1741835288176,35.94243414,125.05,124.99,289.78293414]
[1741835288378,35.94243414,125.05,124.99,154.58293414]
[1741835288579,35.94243414,125.05,125.0,35.94243414]
[1741835289182,43.93903414,125.06,125.0,35.94243414]
[1741835289380,35.94243414,125.05,125.0,35.94243414]
[1741835289570,35.94243414,125.05,124.99,146.58243414]
[1741835289968,35.94243414,125.04,124.99,126.58243414]
[1741835290167,35.94243414,125.04,124.99,134.58303414]
[1741835290369,35.94243414,125.05,124.99,134.58303414]
[1741835290770,35.94243414,125.06,125.0,35.94243414]
[1741835291170,35.94243414,125.05,125.0,35.94243414]
[1741835291379,35.94243414,125.06,125.0,35.94243414]
[1741835291888,35.94243414,125.06,125.0,43.94183414]
[1741835292090,35.94243414,125.05,125.0,43.94183414]
[1741835292604,35.94243414,125.04,124.99,90.64]
[1741835292810,8.0586,125.07,125.02,20.0]
[1741835293084,0.063,125.07,125.05,35.94243414]
[1741835293304,0.063,125.07,125.06,54.592083]
[1741835293786,0.063,125.07,125.06,69.157983]
[1741835294673,0.063,125.07,125.06,69.30014457]
[1741835294868,7.9892,125.17,125.09,20.0]
[1741835295074,35.94243414,125.16,125.11,35.94243414]
[1741835295270,35.94243414,125.17,125.11,35.94243414]
[1741835295583,43.93103414,125.18,125.12,35.94243414]
[1741835295793,7.9886,125.18,125.13,35.94243414]
[1741835295984,43.93103414,125.18,125.13,35.94243414]
[1741835296371,7.9879,125.19,125.14,35.94243414]
[1741835296571,7.9879,125.19,125.15,35.94243414]
[1741835296772,43.99273414,125.2,125.15,35.94243414]
[1741835298191,8.0503,125.2,125.16,35.94243414]
[1741835298372,43.99273414,125.2,125.14,124.69593414]
[1741835298692,43.99273414,125.2,125.15,35.94243414]
[1741835298867,0.063,125.2,125.16,35.94243414]
[1741835299071,0.063,125.2,125.17,35.94243414]
[1741835300176,0.063,125.2,125.15,90.7]
[1741835300495,0.063,125.2,125.18,35.94243414]
[1741835301273,0.063,125.2,125.17,35.94243414]
[1741835302090,0.063,125.2,125.18,35.94243414]
[1741835302993,0.063,125.2,125.19,35.94243414]
[1741835304798,0.063,125.2,125.18,253.54243414]
[1741835305178,0.063,125.2,125.18,217.6]
[1741835306181,35.94243414,125.19,125.14,82.4]
[1741835306383,35.94243414,125.18,125.13,329.82243414]
[1741835306876,35.94243414,125.18,125.13,293.88]
[1741835307203,35.94243414,125.19,125.14,35.94243414]
[1741835307580,43.99263414,125.2,125.15,35.94243414]
[1741835308283,0.063,125.2,125.16,35.94243414]
[1741835308494,0.063,125.2,125.17,35.94243414]
[1741835309180,43.99273414,125.2,125.16,82.4]
[1741835309380,35.94243414,125.19,125.16,82.4]
[1741835309581,8.0503,125.2,125.16,82.4]
[1741835310298,8.0503,125.2,125.16,118.34243414]
[1741835310499,0.063,125.2,125.17,35.94243414]
[1741835310804,0.063,125.2,125.18,35.94243414]
[1741835313101,0.063,125.2,125.18,43.93083414]
[1741835313288,0.063,125.2,125.19,35.94243414]
[1741835314202,0.063,125.2,125.19,136.992083]
[1741835314393,0.063,125.2,125.19,280.179883]
[1741835315108,0.063,125.2,125.19,82.4]
[1741835316817,8.0502,125.2,125.16,126.62243414]
[1741835317906,20.0262,125.24,125.2,82.337]
[1741835317907,0.063,125.24,125.2,82.337]
[1741835318120,0.063,125.24,125.23,55.94243414]
[1741835318289,0.063,125.24,125.23,138.27943414]
[1741835320920,0.063,125.24,125.23,102.337]
[1741835321220,0.063,125.24,125.23,20.0]
[1741835321713,0.063,125.24,125.21,35.94243414]
[1741835321915,0.063,125.24,125.2,217.537]
[1741835322092,0.063,125.24,125.2,82.337]
[1741835322411,35.94243414,125.22,125.17,82.337]
[1741835322621,35.94243414,125.2,125.16,82.337]
[1741835322809,43.93013414,125.2,125.16,82.337]
[1741835323201,7.9877,125.2,125.16,82.337]
[1741835323609,43.93013414,125.2,125.15,118.27943414]
[1741835323814,35.94243414,125.19,125.15,82.337]
[1741835324120,7.9877,125.2,125.15,118.27943414]
[1741835324619,43.93013414,125.2,125.15,118.27943414]
[1741835325918,43.93013414,125.2,125.15,82.337]
[1741835326226,43.93013414,125.2,125.15,118.27943414]
[1741835326424,7.9877,125.2,125.16,35.94243414]
[1741835326799,7.9877,125.2,125.15,118.27943414]
[1741835327628,7.9877,125.2,125.16,35.94243414]
[1741835327992,35.94243414,125.19,125.15,82.337]
[1741835328913,35.94243414,125.17,125.13,82.337]
[1741835329224,35.94243414,125.18,125.13,118.27943414]
[1741835330021,43.93023414,125.19,125.13,118.27943414]
[1741835331698,35.94243414,125.18,125.13,118.27943414]
[1741835333524,7.9891,125.17,125.13,118.30943414]
[1741835336419,35.94243414,125.19,125.13,118.30943414]
[1741835336624,7.9884,125.18,125.13,118.30943414]
[1741835336838,43.93083414,125.18,125.13,82.367]
[1741835336999,43.93083414,125.18,125.13,118.30943414]
[1741835337196,7.9884,125.18,125.13,118.30943414]
[1741835338117,43.93083414,125.18,125.13,118.30943414]
[1741835338943,43.93033414,125.19,125.14,35.94243414]
[1741835340314,43.93033414,125.19,125.13,118.30943414]
[1741835340631,43.93033414,125.19,125.14,35.94243414]
[1741835340802,7.9879,125.19,125.14,35.94243414]
[1741835341297,0.063,125.2,125.16,35.94243414]
[1741835341500,0.063,125.2,125.17,35.94243414]
[1741835342111,0.063,125.2,125.18,35.94243414]
[1741835342623,0.063,125.2,125.19,35.94243414]
[1741835342822,0.063,125.2,125.19,43.93023414]
[1741835343012,0.063,125.2,125.19,35.94243414]
[1741835344505,0.063,125.2,125.19,54.592083]
[1741835344721,0.063,125.2,125.19,62.579883]
[1741835345411,0.063,125.24,125.23,20.0]
[1741835345619,0.063,125.24,125.23,300.309083]
[1741835346723,0.063,125.24,125.23,308.294383]
[1741835346922,0.063,125.24,125.23,281.65943414]
[1741835347315,0.063,125.24,125.23,289.64473414]
[1741835347510,0.063,125.24,125.23,281.65943414]
[1741835347716,0.063,125.24,125.23,289.64473414]
[1741835348231,0.063,125.24,125.23,253.7023]
[1741835348434,0.063,125.24,125.23,289.64473414]
[1741835348829,0.063,125.24,125.23,308.294383]
[1741835349232,0.063,125.24,125.23,300.309083]
[1741835349535,0.063,125.24,125.23,173.094383]
[1741835350436,6.2763,125.33,125.27,20.0]
[1741835350740,6.2763,125.33,125.29,35.94243414]
[1741835351323,14.2553,125.33,125.29,35.94243414]
[1741835352225,0.063,125.33,125.29,35.94243414]
[1741835352843,0.063,125.33,125.31,35.94243414]
[1741835353044,0.063,125.33,125.32,35.94243414]
[1741835354870,0.063,125.33,125.31,82.337]
[1741835355063,0.063,125.33,125.28,35.94243414]
[1741835355064,36.00543414,125.33,125.28,35.94243414]
[1741835355567,36.00543414,125.33,125.26,90.457]
[1741835355568,35.94243414,125.31,125.26,90.457]
[1741835355778,35.94243414,125.29,125.25,82.337]
[1741835356888,35.94243414,125.3,125.25,82.337]
[1741835357547,27.9351,125.29,125.25,82.337]
[1741835357750,35.94243414,125.27,125.23,8.12]
[1741835358183,35.94243414,125.27,125.22,118.27943414]
[1741835358352,35.94243414,125.28,125.22,118.27943414]
[1741835358552,7.9814,125.29,125.24,35.94243414]
[1741835358752,43.92383414,125.29,125.24,35.94243414]
[1741835359083,43.92383414,125.29,125.23,35.94243414]
[1741835359479,43.92383414,125.29,125.25,20.0]
[1741835359851,7.9814,125.29,125.25,20.0]
[1741835360456,43.92383414,125.29,125.25,20.0]
[1741835361289,7.9814,125.29,125.25,20.0]
[1741835361579,7.9814,125.29,125.25,102.337]
[1741835365689,0.063,125.3,125.26,35.94243414]
[1741835365869,8.044,125.3,125.27,35.94243414]
[1741835366061,8.044,125.3,125.26,35.94243414]
[1741835366767,8.044,125.3,125.25,146.33943414]
[1741835366968,8.044,125.3,125.25,64.00243414]
[1741835367283,8.044,125.3,125.26,35.94243414]
[1741835368691,0.063,125.3,125.27,35.94243414]
[1741835368897,0.063,125.3,125.29,35.94243414]
[1741835369094,0.063,125.3,125.29,144.973483]
[1741835369275,0.063,125.3,125.29,280.173483]
[1741835370009,0.0001,125.3,125.29,287.06220614]
[1741835370199,0.063,125.33,125.32,38.64964886]
[1741835370372,0.063,125.33,125.32,300.211983]
[1741835371275,0.063,125.33,125.32,308.191483]
[1741835371791,0.063,125.33,125.32,300.211983]
[1741835372193,0.063,125.33,125.32,612.211983]
[1741835372502,0.063,125.33,125.32,620.191483]
[1741835374606,0.063,125.33,125.32,300.211983]
[1741835375491,0.063,125.33,125.32,281.56233414]
[1741835375883,0.063,125.33,125.32,146.36233414]
[1741835376588,0.063,125.33,125.32,146.32233414]
[1741835377908,0.063,125.33,125.3,126.30233414]
[1741835378207,0.063,125.33,125.3,90.3599]
[1741835378783,0.063,125.33,125.3,82.3999]
[1741835378987,37.52363414,125.33,125.28,35.94243414]
[1741835379194,35.94243414,125.32,125.27,118.34233414]
[1741835379397,37.52363414,125.33,125.27,118.34233414]
[1741835379593,35.94243414,125.32,125.27,118.34233414]
[1741835380083,7.9802,125.31,125.27,82.3999]
[1741835380315,43.92263414,125.31,125.27,82.3999]
[1741835380812,35.94243414,125.3,125.25,118.34233414]
[1741835381123,63.87313414,125.31,125.25,118.34233414]
[1741835381288,43.92263414,125.31,125.25,118.34233414]
[1741835381495,7.9802,125.31,125.27,35.94243414]
[1741835381787,7.9802,125.31,125.25,82.3999]
[1741835381788,7.9802,125.31,125.26,35.94243414]
[1741835384216,7.9802,125.31,125.25,82.3999]
[1741835384403,7.9802,125.31,125.27,22.41538812]
[1741835388002,7.9802,125.31,125.27,42.41538812]
[1741835389506,27.9285,125.32,125.27,42.41538812]
[1741835390419,50.34388812,125.32,125.27,42.41538812]
[1741835390723,50.34388812,125.32,125.27,20.0]
[1741835391127,50.34388812,125.32,125.27,42.41538812]
[1741835392227,27.9285,125.32,125.27,42.41538812]
[1741835393434,7.9795,125.32,125.29,22.41538812]
[1741835395328,9.5601,125.33,125.3,22.41538812]
[1741835396943,0.063,125.32,125.3,22.41538812]
[1741835397627,0.063,125.32,125.31,22.41538812]
[1741835398196,0.063,125.32,125.3,22.41538812]
[1741835398500,0.063,125.32,125.29,30.25538812]
[1741835400320,0.063,125.32,125.3,22.41538812]
[1741835401807,0.063,125.32,125.31,22.41538812]
[1741835403127,0.063,125.32,125.31,104.81538812]
[1741835403708,0.063,125.32,125.31,112.79558812]
[1741835405335,0.063,125.32,125.31,131.44523698]
[1741835405629,0.063,125.32,125.31,266.78739855]
[1741835405810,0.063,125.33,125.32,18.64964886]
[1741835406021,0.063,125.33,125.32,258.80719855]
[1741835406824,0.063,125.33,125.32,266.46503698]
[1741835407750,0.063,125.33,125.32,586.58669855]
[1741835410746,0.063,125.35,125.34,0.14216157]
[1741835410925,0.063,125.35,125.34,44.97293781]
[1741835411327,0.063,125.35,125.34,63.4804251]
[1741835412751,0.063,125.35,125.34,71.60078667]
[1741835413328,0.063,125.35,125.34,289.20078667]
[1741835414245,1.5968,125.42,125.38,18.64964886]
[1741835414441,0.063,125.43,125.4,22.41538812]
[1741835414637,0.063,125.43,125.4,30.38938812]
[1741835414840,0.063,125.43,125.42,42.41538812]
[1741835415040,0.063,125.43,125.42,124.81538812]
[1741835416355,0.063,125.43,125.42,151.43823698]
[1741835416739,0.063,125.43,125.42,151.58039855]
[1741835417152,0.063,125.43,125.42,293.22677786]
[1741835417726,0.063,125.43,125.42,286.92256012]
[1741835418338,0.063,125.43,125.42,286.78039855]
[1741835418747,0.063,125.43,125.42,286.92256012]
[1741835422655,0.063,125.43,125.42,598.92256012]
[1741835423159,0.063,125.45,125.44,0.14216157]
[1741835423355,0.063,125.46,125.45,18.79181043]
[1741835423546,0.063,125.46,125.45,236.39181043]
[1741835423747,0.063,125.46,125.45,258.80719855]
[1741835423943,0.063,125.46,125.45,281.36474824]
[1741835426054,0.063,125.46,125.45,266.92066012]
[1741835426260,0.063,125.46,125.45,258.80719855]
[1741835426460,0.063,125.46,125.45,243.90964886]
[1741835426643,0.063,125.46,125.45,266.46719855]
[1741835427050,0.063,125.46,125.45,274.58066012]
[1741835427261,0.063,125.46,125.45,266.60936012]
[1741835428057,0.063,125.46,125.45,274.58066012]
[1741835428435,0.063,125.46,125.45,266.60936012]
[1741835428856,0.063,125.46,125.45,274.58066012]
[1741835429653,0.063,125.46,125.45,296.99604824]
[1741835430659,0.063,125.46,125.45,266.60936012]
[1741835430862,0.063,125.46,125.45,266.44719855]
[1741835431048,0.063,125.46,125.45,112.45538812]
[1741835432171,0.063,125.46,125.45,131.24719855]
[1741835432372,0.063,125.46,125.45,139.21849855]
[1741835432660,0.063,125.46,125.45,131.24719855]
[1741835432959,0.063,125.46,125.45,139.36066012]
[1741835433960,0.063,125.46,125.45,296.97604824]
[1741835434140,0.063,125.49,125.48,20.0]
[1741835434347,0.063,125.49,125.48,278.80719855]
[1741835437869,0.063,125.49,125.48,286.77649855]
[1741835438268,0.063,125.49,125.48,278.80719855]
[1741835440257,0.063,125.49,125.48,260.01538812]
[1741835440471,0.063,125.49,125.48,237.6]
[1741835440672,0.063,125.49,125.48,260.01538812]
[1741835441176,0.063,125.49,125.48,151.57649855]
[1741835441470,0.063,125.49,125.48,143.60719855]
[1741835444258,0.063,125.49,125.48,116.69465656]
[1741835445081,0.063,125.49,125.48,102.4]
[1741835447568,0.063,125.49,125.48,20.0]
[1741835448577,0.063,125.49,125.48,34.29465656]
[1741835449760,0.063,125.49,125.48,143.45576699]
[1741835450274,0.063,125.49,125.48,143.59792856]
[1741835450862,0.063,125.49,125.48,135.62862856]
[1741835451067,0.063,125.49,125.48,135.48646699]
[1741835451256,0.063,125.49,125.48,102.4]
[1741835452486,0.063,125.49,125.48,124.73837248]
[1741835453589,0.063,125.49,125.48,151.49948291]
[1741835453961,0.063,125.49,125.48,143.53018291]
[1741835454891,0.063,125.49,125.48,278.73018291]
[1741835455985,0.063,125.49,125.48,259.93837248]
[1741835457094,0.063,125.49,125.48,278.73018291]
[1741835457393,0.063,125.49,125.48,286.69948291]
[1741835457561,0.063,125.49,125.48,598.69948291]
[1741835459390,0.063,125.49,125.48,590.87234448]
[1741835459571,0.063,125.49,125.48,278.73018291]
[1741835460284,0.063,125.49,125.48,143.53018291]
[1741835461189,0.063,125.49,125.48,143.67234448]
[1741835461581,0.063,125.49,125.48,143.53018291]
[1741835463296,0.063,125.49,125.48,143.38802134]
[1741835463480,0.063,125.49,125.48,102.4]
[1741835464284,0.063,125.49,125.48,124.73837248]
[1741835469799,0.063,125.49,125.48,104.73837248]
[1741835470302,0.063,125.49,125.48,82.4]
[1741835471702,0.063,125.49,125.48,20.0]
[1741835473586,0.063,125.49,125.46,82.43]
[1741835474502,14.3031521,125.47,125.46,0.03]
[1741835475699,1.598,125.48,125.46,0.03]
[1741835475890,15.9011521,125.48,125.46,0.03]
[1741835476090,14.3031521,125.47,125.46,0.03]
[1741835476297,22.2731521,125.47,125.46,0.03]
[1741835476680,7.97,125.47,125.46,0.03]
[1741835477194,22.2731521,125.47,125.46,0.03]
[1741835477508,7.97,125.47,125.46,0.03]
[1741835479582,9.5676,125.48,125.46,0.03]
[1741835480711,14.3031521,125.47,125.46,0.03]
[1741835480895,23.8707521,125.48,125.46,0.03]
[1741835481097,0.063,125.47,125.46,0.03]
[1741835484112,0.063,125.47,125.46,250.8671241]
[1741835484293,0.063,125.49,125.48,0.14216157]
[1741835484489,0.063,125.49,125.48,14.44531367]
[1741835484989,0.063,125.49,125.48,22.41461367]
[1741835486112,0.063,125.49,125.48,22.2724521]
[1741835486501,0.063,125.49,125.48,22.41461367]
[1741835487112,0.063,125.49,125.48,41.2064241]
[1741835487418,0.063,125.49,125.48,353.2064241]
[1741835489521,0.063,125.53,125.52,20.0]
[1741835489717,0.063,125.53,125.52,278.2370241]
[1741835492025,0.063,125.53,125.52,259.3030521]
[1741835492724,0.063,125.53,125.52,237.5999]
[1741835492897,0.063,125.53,125.52,109.7799]
[1741835494016,0.063,125.53,125.52,102.3999]
[1741835494319,0.063,125.53,125.52,82.3999]
[1741835494506,0.063,125.53,125.52,96.7030521]
[1741835495295,0.063,125.53,125.52,115.35270096]
[1741835495494,0.063,125.53,125.52,115.49486253]
[1741835496051,0.063,125.53,125.52,82.3999]
[1741835496741,0.063,125.53,125.52,96.7030521]
[1741835497350,0.063,125.53,125.52,82.3999]
[1741835498752,0.063,125.53,125.5,82.3999]
[1741835499048,1.71,125.53,125.5,82.3999]
[1741835499766,9.6766,125.53,125.48,82.3999]
[1741835499933,23.9797521,125.53,125.48,82.3999]
[1741835500539,14.3031521,125.52,125.48,82.3999]
[1741835500739,14.3031521,125.51,125.47,89.7599]
[1741835500950,14.3031521,125.52,125.47,89.7599]
[1741835501133,14.3031521,125.52,125.47,82.3999]
[1741835502050,14.3031521,125.52,125.47,96.7030521]
[1741835502239,14.3031521,125.51,125.47,82.3999]
[1741835503567,22.2705521,125.52,125.47,82.3999]
[1741835503938,14.3031521,125.51,125.47,82.3999]
[1741835504164,7.9681,125.5,125.47,82.3999]
[1741835504669,14.3031521,125.49,125.47,82.3999]
[1741835504856,14.3031521,125.48,125.47,82.3999]
[1741835505171,14.3031521,125.48,125.46,0.03]
[1741835505336,14.3031521,125.47,125.46,0.03]
[1741835506347,22.2731521,125.47,125.46,0.03]
[1741835506759,22.41531367,125.47,125.45,0.03]
[1741835506974,14.3031521,125.46,125.41,82.3999]
[1741835507177,14.3031521,125.42,125.38,82.3999]
[1741835507743,15.8250521,125.43,125.38,82.3999]
[1741835507942,15.8250521,125.43,125.38,96.7030521]
[1741835508160,15.8250521,125.43,125.38,82.3999]
[1741835508350,7.9732,125.42,125.38,82.3999]
[1741835508553,23.89750419,125.43,125.38,82.3999]
[1741835508860,31.87020419,125.43,125.38,82.3999]
[1741835509066,1.5219,125.43,125.39,22.37560419]
[1741835509252,1.5219,125.43,125.4,22.37560419]
[1741835510145,1.5219,125.43,125.39,22.37560419]
[1741835510353,31.87020419,125.43,125.41,20.0]
[1741835510562,23.89750419,125.43,125.41,20.0]
[1741835510863,1.5219,125.43,125.41,20.0]
[1741835511168,22.37560419,125.42,125.38,82.3999]
[1741835511945,31.87010419,125.43,125.38,82.3999]
[1741835512351,22.37560419,125.42,125.38,82.3999]
[1741835512553,30.34940419,125.42,125.38,82.3999]
[1741835512753,7.9738,125.42,125.38,82.3999]
[1741835513160,9.4946,125.43,125.38,104.77550419]
[1741835513566,31.87020419,125.43,125.38,104.77550419]
[1741835513767,22.37560419,125.42,125.38,82.3999]
[1741835514067,22.37560419,125.41,125.38,82.3999]
[1741835514480,30.35000419,125.4,125.36,210.82]
[1741835514803,7.9744,125.4,125.36,210.82]
[1741835515151,7.9744,125.4,125.35,82.4299]
[1741835515152,22.37560419,125.39,125.35,82.4299]
[1741835515363,30.35000419,125.4,125.35,82.4299]
[1741835516670,30.35000419,125.4,125.36,0.03]
[1741835518248,28.66140419,125.37,125.36,0.03]
[1741835518879,6.2858,125.37,125.36,0.03]
[1741835519587,6.2858,125.41,125.36,22.40560419]
[1741835519784,14.2598,125.41,125.37,22.37560419]
[1741835520187,1.5488,125.42,125.38,22.37560419]
[1741835520369,1.5488,125.42,125.39,22.37560419]
[1741835520884,1.5488,125.42,125.38,104.77550419]
[1741835521483,1.5488,125.42,125.38,112.75110419]
[1741835522191,9.522,125.42,125.38,104.77550419]
[1741835522568,31.89760419,125.42,125.38,82.3999]
[1741835523266,22.37560419,125.41,125.38,82.3999]
[1741835523464,22.37560419,125.4,125.38,82.3999]
[1741835523762,22.37560419,125.41,125.38,82.3999]
[1741835524272,43.85740419,125.42,125.38,82.3999]
[1741835524469,7.9743,125.41,125.38,82.3999]
[1741835525168,7.9743,125.41,125.36,104.80550419]
[1741835526793,30.34990419,125.41,125.36,104.80550419]
[1741835527086,30.34990419,125.41,125.36,82.4299]
[1741835527393,7.9743,125.41,125.36,104.80550419]
[1741835527581,7.9743,125.41,125.36,112.78240419]
[1741835528887,1.5488,125.42,125.38,22.37560419]
[1741835529078,1.5488,125.42,125.39,22.37560419]
[1741835529398,8.2684,125.45,125.41,22.37560419]
[1741835529687,0.063,125.45,125.42,22.37560419]
[1741835530088,0.063,125.45,125.43,22.37560419]
[1741835530392,0.063,125.45,125.42,22.37560419]
[1741835531171,0.063,125.45,125.44,42.37560419]
[1741835531370,0.063,125.45,125.44,143.56731462]
[1741835531977,0.063,125.45,125.44,143.70947619]
[1741835532868,0.063,125.53,125.5,42.37560419]
[1741835533284,0.063,125.53,125.5,124.71250419]
[1741835533490,0.063,125.53,125.5,102.3369]
[1741835533992,0.063,125.53,125.5,124.71250419]
[1741835534695,0.063,125.53,125.51,22.37560419]
[1741835534871,0.063,125.53,125.52,22.37560419]
[1741835536889,0.063,125.53,125.52,22.51776576]
[1741835537096,0.063,125.53,125.52,258.70431462]
[1741835537474,0.063,125.53,125.52,239.91250419]
[1741835537904,0.063,125.53,125.52,104.71250419]
[1741835538079,0.063,125.53,125.52,82.3369]
[1741835542710,0.063,125.53,125.5,124.71250419]
[1741835543303,0.063,125.53,125.5,82.3369]
[1741835543491,0.063,125.53,125.48,104.71250419]
[1741835543889,0.063,125.53,125.5,22.37560419]
[1741835546292,0.063,125.53,125.51,22.37560419]
[1741835547014,0.063,125.53,125.52,42.37560419]
[1741835547385,0.063,125.53,125.52,49.81560419]
[1741835549307,0.063,125.53,125.52,27.44]
[1741835550218,0.063,125.53,125.52,49.81560419]
[1741835551717,0.063,125.53,125.52,132.15250419]
[1741835555022,0.063,125.53,125.52,158.91111462]
[1741835555701,0.063,125.53,125.52,294.11111462]
[1741835556118,0.063,125.53,125.52,267.35250419]
[1741835558622,0.063,125.53,125.52,20.0]
[1741835559214,0.063,125.53,125.52,42.37560419]
[1741835559413,0.063,125.53,125.52,20.0]
[1741835564613,0.063,125.53,125.52,42.37560419]
[1741835565520,0.063,125.53,125.52,132.67930419]
[1741835565718,0.063,125.53,125.52,124.71250419]
[1741835566441,0.063,125.53,125.52,286.67111462]
[1741835571140,0.063,125.53,125.52,309.18888038]
[1741835572743,0.063,125.59,125.56,20.0]
[1741835572948,0.063,125.59,125.57,22.37560419]
[1741835573120,0.063,125.59,125.56,104.71250419]
[1741835573947,0.063,125.59,125.56,82.3369]
[1741835576344,22.43860419,125.59,125.56,82.3369]
[1741835576529,22.37560419,125.58,125.56,82.3369]
[1741835577241,22.37560419,125.57,125.56,82.3369]
[1741835577637,0.063,125.59,125.56,82.3369]
[1741835577942,22.37560419,125.58,125.53,104.71250419]
[1741835579045,7.963,125.58,125.53,82.3369]
[1741835579243,8.0256,125.59,125.56,42.37560419]
[1741835580949,0.063,125.59,125.56,42.37560419]
[1741835581136,0.063,125.59,125.57,22.37560419]
[1741835581529,0.063,125.59,125.57,20.0]
[1741835582255,0.063,125.59,125.56,42.37560419]
[1741835582461,0.063,125.59,125.57,22.37560419]
[1741835582642,0.063,125.59,125.58,22.37560419]
[1741835583644,0.063,125.59,125.58,20.0]
[1741835584735,0.063,125.59,125.58,42.37560419]
[1741835586748,0.063,125.59,125.58,124.71250419]
[1741835587953,0.063,125.59,125.58,102.3369]
[1741835588147,0.063,125.59,125.58,124.71250419]
[1741835588653,0.063,125.59,125.58,102.3369]
[1741835591333,0.063,125.59,125.58,82.3369]
[1741835593366,0.063,125.59,125.58,104.71250419]
[1741835597660,0.063,125.59,125.58,82.3369]
[1741835598871,0.063,125.59,125.54,82.3369]
[1741835599043,22.43860419,125.59,125.54,104.71250419]
[1741835599536,7.963,125.58,125.54,104.71250419]
[1741835599850,22.37560419,125.57,125.54,82.3369]
[1741835600050,51.84720419,125.58,125.54,82.3369]
[1741835601737,31.93960419,125.58,125.54,82.3369]
[1741835602050,9.564,125.58,125.54,82.3369]
[1741835602656,9.564,125.58,125.54,104.71250419]
[1741835602847,7.963,125.58,125.55,22.37560419]
[1741835603244,8.0256,125.59,125.55,22.37560419]
[1741835604069,0.063,125.59,125.55,22.37560419]
[1741835604272,0.063,125.59,125.55,104.71250419]
[1741835605354,0.063,125.59,125.56,22.37560419]
[1741835605670,0.063,125.59,125.55,104.71250419]
[1741835608161,0.063,125.59,125.56,22.37560419]
[1741835608366,0.063,125.59,125.58,22.37560419]
[1741835609364,0.063,125.59,125.58,240.05466576]
[1741835609567,0.063,125.59,125.58,277.85543152]
[1741835610067,0.063,125.59,125.58,255.47982733]
[1741835610475,0.063,125.59,125.58,277.85543152]